[Event "Titled Tuesday Blitz August 3 2021"]
[White "Srihari L R"]
[Black "Zubov, Alexander"]
[WhiteFideId "46617116"]
[BlackFideId "14109409"]
[WhiteElo "2121"]
[BlackElo "2740"]
[Result "0-1"]
[Round "03"]
[TimeControl "180+1"]
[Date "2021.08.03"]
[WhiteClock "0:00:06"]
[BlackClock "0:00:19"]

1. d4 {[%clk 0:03:00]}  Nf6 {[%clk 0:02:59]} 2. c4 {[%clk 0:03:00]}  g6 {[%clk 0:02:58]} 3. Nc3 {[%clk 0:02:58]}  d5 {[%clk 0:02:58]} 4. cxd5 {[%clk 0:02:58]}  Nxd5 {[%clk 0:02:58]} 5. Bd2 {[%clk 0:02:59]}  Bg7 {[%clk 0:02:57]} 6. e4 {[%clk 0:02:59]}  Nb6 {[%clk 0:02:57]} 7. Be3 {[%clk 0:02:59]}  O-O {[%clk 0:02:57]} 8. h3 {[%clk 0:02:58]}  e5 {[%clk 0:02:55]} 9. Nf3 {[%clk 0:02:54]}  exd4 {[%clk 0:02:49]} 10. Bxd4 {[%clk 0:02:51]}  Bxd4 {[%clk 0:02:36]} 11. Qxd4 {[%clk 0:02:46]}  Nc6 {[%clk 0:02:34]} 12. Qe3 {[%clk 0:02:44]}  Qe7 {[%clk 0:02:30]} 13. Bb5 {[%clk 0:02:38]}  Nb4 {[%clk 0:02:23]} 14. Rc1 {[%clk 0:02:36]}  a6 {[%clk 0:02:08]} 15. Be2 {[%clk 0:02:32]}  Be6 {[%clk 0:02:08]} 16. a3 {[%clk 0:02:30]}  Nc6 {[%clk 0:02:08]} 17. O-O {[%clk 0:02:29]}  Rad8 {[%clk 0:02:07]} 18. Rfd1 {[%clk 0:02:26]}  Bb3 {[%clk 0:01:54]} 19. Rd2 {[%clk 0:01:59]}  Nc4 {[%clk 0:01:37]} 20. Bxc4 {[%clk 0:01:48]}  Bxc4 {[%clk 0:01:37]} 21. Nd5 {[%clk 0:01:46]}  Bxd5 {[%clk 0:01:36]} 22. exd5 {[%clk 0:01:46]}  Qxe3 {[%clk 0:01:35]} 23. fxe3 {[%clk 0:01:47]}  Ne7 {[%clk 0:01:35]} 24. Rxc7 {[%clk 0:01:46]}  Nxd5 {[%clk 0:01:34]} 25. Rxb7 {[%clk 0:01:46]}  Nxe3 {[%clk 0:01:35]} 26. Rxd8 {[%clk 0:01:46]}  Rxd8 {[%clk 0:01:36]} 27. Kf2 {[%clk 0:01:41]}  Nc4 {[%clk 0:01:34]} 28. a4 {[%clk 0:01:38]}  a5 {[%clk 0:00:56]} 29. Rb5 {[%clk 0:01:33]}  Nd6 {[%clk 0:00:51]} 30. Rxa5 {[%clk 0:01:32]}  Rb8 {[%clk 0:00:51]} 31. Rd5 {[%clk 0:01:19]}  Rxb2+ {[%clk 0:00:47]} 32. Kg1 {[%clk 0:01:16]}  Nf5 {[%clk 0:00:44]} 33. Rd2 {[%clk 0:01:10]}  Rb1+ {[%clk 0:00:44]} 34. Kh2 {[%clk 0:01:00]}  Ra1 {[%clk 0:00:44]} 35. Ng5 {[%clk 0:00:53]}  h6 {[%clk 0:00:41]} 36. Ne4 {[%clk 0:00:43]}  Rxa4 {[%clk 0:00:41]} 37. Nf6+ {[%clk 0:00:39]}  Kg7 {[%clk 0:00:41]} 38. Ne8+ {[%clk 0:00:39]}  Kf8 {[%clk 0:00:41]} 39. Rd8 {[%clk 0:00:37]}  Ke7 {[%clk 0:00:40]} 40. Rb8 {[%clk 0:00:33]}  Rc4 {[%clk 0:00:38]} 41. g4 {[%clk 0:00:27]}  Nd4 {[%clk 0:00:35]} 42. Ra8 {[%clk 0:00:20]}  Ne6 {[%clk 0:00:31]} 43. Kg3 {[%clk 0:00:17]}  Rc3+ {[%clk 0:00:32]} 44. Kh2 {[%clk 0:00:16]}  Nf4 {[%clk 0:00:21]} 45. h4 {[%clk 0:00:14]}  Rh3+ {[%clk 0:00:21]} 46. Kg1 {[%clk 0:00:14]}  Rxh4 {[%clk 0:00:21]} 47. g5 {[%clk 0:00:12]}  Rg4+ {[%clk 0:00:20]} 48. Kf2 {[%clk 0:00:10]}  Rxg5 {[%clk 0:00:21]} 49. Nc7 {[%clk 0:00:09]}  Rc5 {[%clk 0:00:20]} 50. Ra7 {[%clk 0:00:08]}  Kf8 {[%clk 0:00:19]} 51. Ke3 {[%clk 0:00:08]}  Rxc7 {[%clk 0:00:17]} 52. Ra8+ {[%clk 0:00:06]}  Kg7 {[%clk 0:00:18]} 53. Kxf4 {[%clk 0:00:07]}  g5+ {[%clk 0:00:18]} 54. Kg4 {[%clk 0:00:07]}  Rc4+ {[%clk 0:00:18]} 55. Kf5 {[%clk 0:00:06]}  Rf4+ {[%clk 0:00:18]} 56. Ke5 {[%clk 0:00:06]}  h5 {[%clk 0:00:19]} 0-1


[Site "https://www.chess.com"]

[Event "Titled Tuesday Blitz August 3 2021"]
[White "Stribuk, Artiom"]
[Black "Ivanchuk, Vasyl"]
[WhiteFideId "13515659"]
[BlackFideId "14100010"]
[WhiteElo "2224"]
[BlackElo "2710"]
[Result "1/2-1/2"]
[Round "03"]
[TimeControl "180+1"]
[Date "2021.08.03"]
[WhiteClock "0:01:12"]
[BlackClock "0:01:28"]

1. d4 {[%clk 0:03:00]}  Nf6 {[%clk 0:02:58]} 2. c4 {[%clk 0:03:00]}  g6 {[%clk 0:02:59]} 3. Nf3 {[%clk 0:03:00]}  Bg7 {[%clk 0:02:58]} 4. g3 {[%clk 0:03:01]}  c6 {[%clk 0:02:58]} 5. Bg2 {[%clk 0:03:01]}  d5 {[%clk 0:02:58]} 6. cxd5 {[%clk 0:03:02]}  cxd5 {[%clk 0:02:58]} 7. O-O {[%clk 0:03:02]}  O-O {[%clk 0:02:58]} 8. Ne5 {[%clk 0:03:03]}  e6 {[%clk 0:02:56]} 9. Nc3 {[%clk 0:03:02]}  Nfd7 {[%clk 0:02:56]} 10. Nf3 {[%clk 0:02:44]}  Nc6 {[%clk 0:02:56]} 11. b3 {[%clk 0:02:41]}  Re8 {[%clk 0:02:42]} 12. a4 {[%clk 0:02:28]}  b6 {[%clk 0:02:27]} 13. Ba3 {[%clk 0:02:27]}  Ba6 {[%clk 0:02:23]} 14. Nb5 {[%clk 0:02:23]}  Bf8 {[%clk 0:02:08]} 15. Nd6 {[%clk 0:01:55]}  Bxd6 {[%clk 0:02:07]} 16. Bxd6 {[%clk 0:01:55]}  Nf6 {[%clk 0:02:06]} 17. Ba3 {[%clk 0:01:47]}  Ne4 {[%clk 0:02:01]} 18. Rc1 {[%clk 0:01:36]}  Rc8 {[%clk 0:02:01]} 19. Re1 {[%clk 0:01:37]}  f6 {[%clk 0:01:48]} 20. e3 {[%clk 0:01:33]}  Qd7 {[%clk 0:01:44]} 21. Nd2 {[%clk 0:01:29]}  Nxd2 {[%clk 0:01:37]} 22. Qxd2 {[%clk 0:01:30]}  Na5 {[%clk 0:01:36]} 23. Qb4 {[%clk 0:01:17]}  Nc6 {[%clk 0:01:31]} 24. Qd2 {[%clk 0:01:14]}  Na5 {[%clk 0:01:30]} 25. Qb4 {[%clk 0:01:12]}  Nc6 {[%clk 0:01:28]} 26. Qd2 {[%clk 0:01:12]} 1/2-1/2


[Site "https://www.chess.com"]

[Event "Titled Tuesday Blitz August 3 2021"]
[White "Ter-Sahakyan, Samvel"]
[Black "Matinian, Nikita"]
[WhiteFideId "13302531"]
[BlackFideId "24129100"]
[WhiteElo "2551"]
[BlackElo "2410"]
[Result "1-0"]
[Round "03"]
[TimeControl "180+1"]
[Date "2021.08.03"]
[WhiteClock "0:00:29"]
[BlackClock "0:00:14"]

1. Nf3 {[%clk 0:03:00]}  Nf6 {[%clk 0:02:54]} 2. b3 {[%clk 0:02:59]}  g6 {[%clk 0:02:52]} 3. Bb2 {[%clk 0:02:59]}  Bg7 {[%clk 0:02:53]} 4. e3 {[%clk 0:02:59]}  d6 {[%clk 0:02:52]} 5. d4 {[%clk 0:02:57]}  O-O {[%clk 0:02:51]} 6. Be2 {[%clk 0:02:57]}  c5 {[%clk 0:02:51]} 7. O-O {[%clk 0:02:51]}  Ne4 {[%clk 0:02:51]} 8. Nbd2 {[%clk 0:02:43]}  Nxd2 {[%clk 0:02:51]} 9. Qxd2 {[%clk 0:02:42]}  Nc6 {[%clk 0:02:52]} 10. c4 {[%clk 0:02:39]}  cxd4 {[%clk 0:02:52]} 11. Nxd4 {[%clk 0:02:38]}  Ne5 {[%clk 0:02:47]} 12. h3 {[%clk 0:02:35]}  Qb6 {[%clk 0:02:40]} 13. Rac1 {[%clk 0:02:32]}  Bd7 {[%clk 0:02:38]} 14. Rfd1 {[%clk 0:02:32]}  Rfd8 {[%clk 0:02:37]} 15. Bc3 {[%clk 0:02:21]}  a5 {[%clk 0:02:37]} 16. a4 {[%clk 0:02:19]}  Nc6 {[%clk 0:02:30]} 17. Qb2 {[%clk 0:02:16]}  Nb4 {[%clk 0:02:26]} 18. Bf3 {[%clk 0:02:05]}  e5 {[%clk 0:02:24]} 19. Nb5 {[%clk 0:02:01]}  Be6 {[%clk 0:02:24]} 20. Bxb4 {[%clk 0:01:53]}  axb4 {[%clk 0:02:24]} 21. Bd5 {[%clk 0:01:54]}  Bf5 {[%clk 0:01:59]} 22. Qd2 {[%clk 0:01:47]}  e4 {[%clk 0:01:53]} 23. Qxb4 {[%clk 0:01:41]}  h5 {[%clk 0:01:50]} 24. Rd2 {[%clk 0:01:34]}  h4 {[%clk 0:01:49]} 25. Rcd1 {[%clk 0:01:34]}  Bf6 {[%clk 0:01:37]} 26. Qa3 {[%clk 0:01:02]}  Kg7 {[%clk 0:01:35]} 27. Qc1 {[%clk 0:01:01]}  Be5 {[%clk 0:01:33]} 28. Qc2 {[%clk 0:01:00]}  Re8 {[%clk 0:01:28]} 29. Kh1 {[%clk 0:00:58]}  Bf6 {[%clk 0:01:19]} 30. Nd4 {[%clk 0:00:51]}  Rad8 {[%clk 0:01:14]} 31. Nb5 {[%clk 0:00:41]}  Re7 {[%clk 0:01:10]} 32. Nc3 {[%clk 0:00:41]}  Rde8 {[%clk 0:01:07]} 33. Nb5 {[%clk 0:00:41]}  Rd8 {[%clk 0:01:06]} 34. b4 {[%clk 0:00:39]}  g5 {[%clk 0:00:56]} 35. a5 {[%clk 0:00:38]}  Qa6 {[%clk 0:00:56]} 36. f3 {[%clk 0:00:29]}  Qa8 {[%clk 0:00:37]} 37. Bxe4 {[%clk 0:00:29]}  Bxe4 {[%clk 0:00:37]} 38. fxe4 {[%clk 0:00:30]}  Be5 {[%clk 0:00:19]} 39. Nxd6 {[%clk 0:00:30]}  Bxd6 {[%clk 0:00:19]} 40. Rxd6 {[%clk 0:00:30]}  Rxd6 {[%clk 0:00:20]} 41. Rxd6 {[%clk 0:00:31]}  Qe8 {[%clk 0:00:15]} 42. Qc3+ {[%clk 0:00:30]}  Kg8 {[%clk 0:00:14]} 43. Qf6 {[%clk 0:00:29]} 1-0


[Site "https://www.chess.com"]

[Event "Titled Tuesday Blitz August 3 2021"]
[White "Tristan, Leonardo"]
[Black "Leisch, Lukas"]
[WhiteFideId "113816"]
[BlackFideId "1632094"]
[WhiteElo "2404"]
[BlackElo "2247"]
[Result "1-0"]
[Round "03"]
[TimeControl "180+1"]
[Date "2021.08.03"]
[WhiteClock "0:00:28"]
[BlackClock "0:00:01"]

1. d4 {[%clk 0:03:00]}  e6 {[%clk 0:02:56]} 2. Nf3 {[%clk 0:03:00]}  c5 {[%clk 0:02:56]} 3. c3 {[%clk 0:02:59]}  b6 {[%clk 0:02:53]} 4. Bf4 {[%clk 0:02:59]}  Bb7 {[%clk 0:02:53]} 5. e3 {[%clk 0:03:00]}  Nf6 {[%clk 0:02:41]} 6. Nbd2 {[%clk 0:02:58]}  d6 {[%clk 0:02:39]} 7. Bd3 {[%clk 0:02:58]}  Nbd7 {[%clk 0:02:39]} 8. O-O {[%clk 0:02:57]}  Qc7 {[%clk 0:02:35]} 9. h3 {[%clk 0:02:56]}  Be7 {[%clk 0:02:32]} 10. Bh2 {[%clk 0:02:55]}  O-O {[%clk 0:02:32]} 11. a4 {[%clk 0:02:55]}  a6 {[%clk 0:02:25]} 12. Re1 {[%clk 0:02:51]}  Bc6 {[%clk 0:02:18]} 13. Qe2 {[%clk 0:02:46]}  Qb7 {[%clk 0:02:17]} 14. Nc4 {[%clk 0:02:40]}  Ne8 {[%clk 0:02:13]} 15. e4 {[%clk 0:02:34]}  d5 {[%clk 0:02:01]} 16. exd5 {[%clk 0:02:31]}  Bxd5 {[%clk 0:02:01]} 17. Nce5 {[%clk 0:01:51]}  Nxe5 {[%clk 0:01:56]} 18. Nxe5 {[%clk 0:01:52]}  Bxg2 {[%clk 0:01:24]} 19. f3 {[%clk 0:01:52]}  Bxh3 {[%clk 0:01:24]} 20. Be4 {[%clk 0:01:52]}  Qc8 {[%clk 0:01:12]} 21. Bxa8 {[%clk 0:01:19]}  Qxa8 {[%clk 0:01:03]} 22. Nd7 {[%clk 0:01:19]}  cxd4 {[%clk 0:00:57]} 23. Nxf8 {[%clk 0:01:11]}  dxc3 {[%clk 0:00:41]} 24. Nd7 {[%clk 0:00:59]}  cxb2 {[%clk 0:00:19]} 25. Rad1 {[%clk 0:00:58]}  Qc6 {[%clk 0:00:13]} 26. Qe4 {[%clk 0:00:48]}  Qc8 {[%clk 0:00:06]} 27. Kh1 {[%clk 0:00:40]}  Bf5 {[%clk 0:00:07]} 28. Qd4 {[%clk 0:00:32]}  b1=Q {[%clk 0:00:08]} 29. Rxb1 {[%clk 0:00:32]}  Bxb1 {[%clk 0:00:08]} 30. Rxb1 {[%clk 0:00:33]}  Qc2 {[%clk 0:00:02]} 31. Qd1 {[%clk 0:00:31]}  Qc6 {[%clk 0:00:01]} 32. Rxb6 {[%clk 0:00:28]}  Qa8 {[%clk 0:00:01]} 33. Rb8 {[%clk 0:00:28]} 1-0


[Site "https://www.chess.com"]

[Event "Titled Tuesday Blitz August 3 2021"]
[White "Weetik, Vjacheslav"]
[Black "Shtivelband, Richard"]
[WhiteFideId "4153472"]
[BlackFideId "2017342"]
[WhiteElo "2469"]
[BlackElo "2415"]
[Result "1-0"]
[Round "03"]
[TimeControl "180+1"]
[Date "2021.08.03"]
[WhiteClock "0:00:06"]
[BlackClock "0:00:25"]

1. e4 {[%clk 0:02:55]}  e5 {[%clk 0:02:58]} 2. Nf3 {[%clk 0:02:55]}  Nc6 {[%clk 0:02:58]} 3. Nc3 {[%clk 0:02:56]}  Nf6 {[%clk 0:02:57]} 4. Bb5 {[%clk 0:02:55]}  Bd6 {[%clk 0:02:57]} 5. d3 {[%clk 0:02:55]}  Ne7 {[%clk 0:02:54]} 6. d4 {[%clk 0:02:44]}  Ng6 {[%clk 0:02:53]} 7. Bg5 {[%clk 0:02:34]}  h6 {[%clk 0:02:53]} 8. Be3 {[%clk 0:02:33]}  Qe7 {[%clk 0:02:48]} 9. O-O {[%clk 0:02:24]}  O-O {[%clk 0:02:45]} 10. Re1 {[%clk 0:02:21]}  c6 {[%clk 0:02:42]} 11. Bf1 {[%clk 0:02:21]}  Bc7 {[%clk 0:02:42]} 12. dxe5 {[%clk 0:02:00]}  Nxe5 {[%clk 0:02:41]} 13. h3 {[%clk 0:02:00]}  d6 {[%clk 0:02:39]} 14. Nd4 {[%clk 0:01:58]}  Re8 {[%clk 0:02:34]} 15. Qd2 {[%clk 0:01:49]}  Ng6 {[%clk 0:02:33]} 16. Nf5 {[%clk 0:01:34]}  Qf8 {[%clk 0:02:05]} 17. Rad1 {[%clk 0:01:26]}  Nxe4 {[%clk 0:02:03]} 18. Nxh6+ {[%clk 0:00:45]}  gxh6 {[%clk 0:02:02]} 19. Nxe4 {[%clk 0:00:45]}  Rxe4 {[%clk 0:01:59]} 20. Bxh6 {[%clk 0:00:45]}  Qe8 {[%clk 0:01:54]} 21. Qc3 {[%clk 0:00:34]}  Re5 {[%clk 0:01:25]} 22. f4 {[%clk 0:00:30]}  Ba5 {[%clk 0:01:05]} 23. Qxa5 {[%clk 0:00:17]}  Rxa5 {[%clk 0:01:01]} 24. Rxe8+ {[%clk 0:00:16]}  Kh7 {[%clk 0:01:01]} 25. Bg5 {[%clk 0:00:17]}  Kg7 {[%clk 0:00:49]} 26. Bd3 {[%clk 0:00:15]}  f6 {[%clk 0:00:47]} 27. Bxg6 {[%clk 0:00:12]}  fxg5 {[%clk 0:00:47]} 28. f5 {[%clk 0:00:11]}  b6 {[%clk 0:00:41]} 29. Rde1 {[%clk 0:00:09]}  Bxf5 {[%clk 0:00:34]} 30. Rxa8 {[%clk 0:00:08]}  Bxg6 {[%clk 0:00:34]} 31. Re7+ {[%clk 0:00:08]}  Kf6 {[%clk 0:00:33]} 32. Raxa7 {[%clk 0:00:09]}  Rd5 {[%clk 0:00:29]} 33. Re2 {[%clk 0:00:07]}  Rd1+ {[%clk 0:00:28]} 34. Kf2 {[%clk 0:00:06]}  d5 {[%clk 0:00:25]} 35. Ra6 {[%clk 0:00:06]} 1-0


[Site "https://www.chess.com"]

[Event "Titled Tuesday Blitz August 3 2021"]
[White "Willow, Jonah B"]
[Black "Vivas Zamora, Fabian Ernesto"]
[WhiteFideId "438804"]
[BlackFideId "3902480"]
[WhiteElo "2261"]
[BlackElo "1966"]
[Result "1-0"]
[Round "03"]
[TimeControl "180+1"]
[Date "2021.08.03"]
[WhiteClock "0:00:17"]
[BlackClock "0:00:07"]

1. e4 {[%clk 0:03:00]}  e5 {[%clk 0:02:59]} 2. Nf3 {[%clk 0:03:00]}  Nc6 {[%clk 0:03:00]} 3. Nc3 {[%clk 0:03:00]}  Nf6 {[%clk 0:02:59]} 4. Bb5 {[%clk 0:02:58]}  Nd4 {[%clk 0:02:59]} 5. Bc4 {[%clk 0:02:57]}  Bc5 {[%clk 0:02:54]} 6. d3 {[%clk 0:02:57]}  c6 {[%clk 0:02:31]} 7. Nxe5 {[%clk 0:02:54]}  Qe7 {[%clk 0:02:23]} 8. Nf3 {[%clk 0:02:15]}  d5 {[%clk 0:02:20]} 9. Bb3 {[%clk 0:02:06]}  Bg4 {[%clk 0:02:07]} 10. Be3 {[%clk 0:02:03]}  dxe4 {[%clk 0:01:58]} 11. dxe4 {[%clk 0:01:47]}  Nxe4 {[%clk 0:01:20]} 12. O-O {[%clk 0:01:17]}  O-O-O {[%clk 0:00:52]} 13. Bxd4 {[%clk 0:01:11]}  Rxd4 {[%clk 0:00:24]} 14. Qe2 {[%clk 0:00:39]}  f5 {[%clk 0:00:17]} 15. Rfe1 {[%clk 0:00:35]}  Qf6 {[%clk 0:00:12]} 16. h3 {[%clk 0:00:27]}  Nxc3 {[%clk 0:00:12]} 17. bxc3 {[%clk 0:00:24]}  Re4 {[%clk 0:00:12]} 18. Qd3 {[%clk 0:00:20]}  Rd8 {[%clk 0:00:12]} 19. Nd4 {[%clk 0:00:17]}  Bxd4 {[%clk 0:00:10]} 20. cxd4 {[%clk 0:00:12]}  Rexd4 {[%clk 0:00:11]} 21. Qg3 {[%clk 0:00:12]}  Bh5 {[%clk 0:00:10]} 22. Be6+ {[%clk 0:00:10]}  R4d7 {[%clk 0:00:08]} 23. Bxd7+ {[%clk 0:00:10]}  Rxd7 {[%clk 0:00:06]} 24. Qe5 {[%clk 0:00:08]}  Qxe5 {[%clk 0:00:05]} 25. Rxe5 {[%clk 0:00:09]}  Bg6 {[%clk 0:00:05]} 26. Rae1 {[%clk 0:00:09]}  Kc7 {[%clk 0:00:05]} 27. Re7 {[%clk 0:00:09]}  Kd6 {[%clk 0:00:06]} 28. Rxd7+ {[%clk 0:00:09]}  Kxd7 {[%clk 0:00:06]} 29. Rd1+ {[%clk 0:00:10]}  Kc7 {[%clk 0:00:07]} 30. f4 {[%clk 0:00:10]}  Bf7 {[%clk 0:00:06]} 31. a3 {[%clk 0:00:10]}  Bd5 {[%clk 0:00:06]} 32. Kf2 {[%clk 0:00:10]}  Be4 {[%clk 0:00:06]} 33. c3 {[%clk 0:00:11]}  b5 {[%clk 0:00:06]} 34. g4 {[%clk 0:00:11]}  a6 {[%clk 0:00:06]} 35. Rg1 {[%clk 0:00:10]}  g6 {[%clk 0:00:05]} 36. Ke3 {[%clk 0:00:11]}  a5 {[%clk 0:00:05]} 37. Rd1 {[%clk 0:00:11]}  c5 {[%clk 0:00:04]} 38. Re1 {[%clk 0:00:10]}  Kc6 {[%clk 0:00:04]} 39. Rc1 {[%clk 0:00:10]}  b4 {[%clk 0:00:04]} 40. cxb4 {[%clk 0:00:11]}  axb4 {[%clk 0:00:03]} 41. axb4 {[%clk 0:00:12]}  Kb5 {[%clk 0:00:03]} 42. Rxc5+ {[%clk 0:00:12]}  Kxb4 {[%clk 0:00:03]} 43. Rc7 {[%clk 0:00:13]}  fxg4 {[%clk 0:00:03]} 44. Kxe4 {[%clk 0:00:13]}  g3 {[%clk 0:00:03]} 45. Rc1 {[%clk 0:00:12]}  h5 {[%clk 0:00:04]} 46. Rg1 {[%clk 0:00:13]}  h4 {[%clk 0:00:05]} 47. f5 {[%clk 0:00:13]}  gxf5+ {[%clk 0:00:05]} 48. Kxf5 {[%clk 0:00:14]}  Kc3 {[%clk 0:00:05]} 49. Kg4 {[%clk 0:00:15]}  Kd4 {[%clk 0:00:06]} 50. Kxh4 {[%clk 0:00:16]}  Ke4 {[%clk 0:00:06]} 51. Rxg3 {[%clk 0:00:16]}  Kf5 {[%clk 0:00:07]} 52. Rg4 {[%clk 0:00:17]} 1-0


[Site "https://www.chess.com"]

[Event "Titled Tuesday Blitz August 3 2021"]
[White "Yaniuk, Volodymyr"]
[Black "Dvirnyy, Danyyil"]
[WhiteFideId "14133083"]
[BlackFideId "817570"]
[WhiteElo "2207"]
[BlackElo "2531"]
[Result "0-1"]
[Round "03"]
[TimeControl "180+1"]
[Date "2021.08.03"]
[WhiteClock "0:00:11"]
[BlackClock "0:00:21"]

1. d4 {[%clk 0:02:58]}  Nf6 {[%clk 0:02:59]} 2. c4 {[%clk 0:02:58]}  e6 {[%clk 0:03:00]} 3. g3 {[%clk 0:02:58]}  d5 {[%clk 0:02:59]} 4. Bg2 {[%clk 0:02:58]}  dxc4 {[%clk 0:02:59]} 5. Nf3 {[%clk 0:02:58]}  c6 {[%clk 0:03:00]} 6. O-O {[%clk 0:02:54]}  b5 {[%clk 0:03:00]} 7. Ne5 {[%clk 0:02:54]}  Bb7 {[%clk 0:03:00]} 8. b3 {[%clk 0:02:53]}  cxb3 {[%clk 0:02:59]} 9. axb3 {[%clk 0:02:54]}  Be7 {[%clk 0:02:57]} 10. Nc3 {[%clk 0:02:53]}  a6 {[%clk 0:02:55]} 11. Bb2 {[%clk 0:02:51]}  O-O {[%clk 0:02:54]} 12. Ne4 {[%clk 0:02:47]}  Nxe4 {[%clk 0:02:47]} 13. Bxe4 {[%clk 0:02:48]}  a5 {[%clk 0:02:42]} 14. Qc2 {[%clk 0:02:46]}  h6 {[%clk 0:02:39]} 15. Rfc1 {[%clk 0:02:41]}  Bf6 {[%clk 0:02:33]} 16. e3 {[%clk 0:02:23]}  Qb6 {[%clk 0:01:57]} 17. Nd3 {[%clk 0:01:48]}  Nd7 {[%clk 0:01:51]} 18. Qe2 {[%clk 0:01:45]}  Rac8 {[%clk 0:01:44]} 19. Qd2 {[%clk 0:01:39]}  Ra8 {[%clk 0:01:20]} 20. Nc5 {[%clk 0:01:29]}  Nxc5 {[%clk 0:01:19]} 21. Rxc5 {[%clk 0:01:30]}  Rfd8 {[%clk 0:01:11]} 22. Qe2 {[%clk 0:01:26]}  a4 {[%clk 0:01:09]} 23. b4 {[%clk 0:01:15]}  Rd5 {[%clk 0:01:02]} 24. Bxd5 {[%clk 0:01:07]}  exd5 {[%clk 0:01:02]} 25. Qc2 {[%clk 0:00:55]}  Re8 {[%clk 0:01:02]} 26. Rc1 {[%clk 0:00:54]}  Re6 {[%clk 0:01:02]} 27. Kg2 {[%clk 0:00:50]}  g6 {[%clk 0:01:02]} 28. Qd3 {[%clk 0:00:42]}  Qd8 {[%clk 0:00:58]} 29. Bc3 {[%clk 0:00:39]}  Qe7 {[%clk 0:00:58]} 30. Bd2 {[%clk 0:00:36]}  h5 {[%clk 0:00:55]} 31. f3 {[%clk 0:00:36]}  Bg5 {[%clk 0:00:52]} 32. R1c3 {[%clk 0:00:34]}  h4 {[%clk 0:00:45]} 33. g4 {[%clk 0:00:30]}  Bf6 {[%clk 0:00:36]} 34. h3 {[%clk 0:00:29]}  Qe8 {[%clk 0:00:35]} 35. f4 {[%clk 0:00:25]}  Re4 {[%clk 0:00:33]} 36. g5 {[%clk 0:00:25]}  Bg7 {[%clk 0:00:32]} 37. Be1 {[%clk 0:00:25]}  Bxd4 {[%clk 0:00:30]} 38. exd4 {[%clk 0:00:18]}  Rxe1 {[%clk 0:00:31]} 39. Rc2 {[%clk 0:00:17]}  Re4 {[%clk 0:00:26]} 40. Rf2 {[%clk 0:00:15]}  Re3 {[%clk 0:00:27]} 41. Qd2 {[%clk 0:00:14]}  Qe4+ {[%clk 0:00:25]} 42. Kg1 {[%clk 0:00:09]}  Rxh3 {[%clk 0:00:21]} 43. Rg2 {[%clk 0:00:08]}  Re3 {[%clk 0:00:19]} 44. Rc1 {[%clk 0:00:07]}  a3 {[%clk 0:00:19]} 45. Rf1 {[%clk 0:00:06]}  h3 {[%clk 0:00:18]} 46. Rgf2 {[%clk 0:00:06]}  Bc8 {[%clk 0:00:18]} 47. Kh2 {[%clk 0:00:06]}  Bf5 {[%clk 0:00:16]} 48. Rg1 {[%clk 0:00:06]}  Rd3 {[%clk 0:00:16]} 49. Qe2 {[%clk 0:00:06]}  Qxe2 {[%clk 0:00:15]} 50. Rxe2 {[%clk 0:00:07]}  Rxd4 {[%clk 0:00:15]} 51. Rg3 {[%clk 0:00:07]}  Be6 {[%clk 0:00:15]} 52. f5 {[%clk 0:00:06]}  Bxf5 {[%clk 0:00:14]} 53. Re8+ {[%clk 0:00:06]}  Kg7 {[%clk 0:00:14]} 54. Rxa3 {[%clk 0:00:06]}  Rd2+ {[%clk 0:00:15]} 55. Kg1 {[%clk 0:00:05]}  h2+ {[%clk 0:00:15]} 56. Kh1 {[%clk 0:00:05]}  Be4+ {[%clk 0:00:15]} 57. Rxe4 {[%clk 0:00:04]}  Rd1+ {[%clk 0:00:15]} 58. Kxh2 {[%clk 0:00:03]}  dxe4 {[%clk 0:00:15]} 59. Kg3 {[%clk 0:00:03]}  Rd3+ {[%clk 0:00:15]} 60. Rxd3 {[%clk 0:00:03]}  exd3 {[%clk 0:00:15]} 61. Kf3 {[%clk 0:00:03]}  f6 {[%clk 0:00:16]} 62. Ke3 {[%clk 0:00:02]}  fxg5 {[%clk 0:00:16]} 63. Kxd3 {[%clk 0:00:03]}  Kf6 {[%clk 0:00:16]} 64. Kd4 {[%clk 0:00:04]}  g4 {[%clk 0:00:17]} 65. Kc5 {[%clk 0:00:05]}  g3 {[%clk 0:00:17]} 66. Kxc6 {[%clk 0:00:06]}  g2 {[%clk 0:00:18]} 67. Kxb5 {[%clk 0:00:07]}  g1=Q {[%clk 0:00:19]} 68. Kc6 {[%clk 0:00:07]}  Qg2+ {[%clk 0:00:18]} 69. Kb6 {[%clk 0:00:07]}  Qf2+ {[%clk 0:00:18]} 70. Ka6 {[%clk 0:00:07]}  Qa2+ {[%clk 0:00:18]} 71. Kb5 {[%clk 0:00:07]}  g5 {[%clk 0:00:17]} 72. Kb6 {[%clk 0:00:07]}  g4 {[%clk 0:00:18]} 73. b5 {[%clk 0:00:08]}  g3 {[%clk 0:00:18]} 74. Kc7 {[%clk 0:00:09]}  g2 {[%clk 0:00:19]} 75. b6 {[%clk 0:00:10]}  g1=Q {[%clk 0:00:20]} 76. b7 {[%clk 0:00:11]}  Qc5+ {[%clk 0:00:20]} 77. Kd7 {[%clk 0:00:11]}  Qf7+ {[%clk 0:00:21]} 78. Kd8 {[%clk 0:00:11]}  Qcc7# {[%clk 0:00:21]} 0-1


[Site "https://www.chess.com"]